[Event "*** Titled Tuesday Blitz"]
[Site "Chess.com"]
[Date "2020.12.01"]
[Round "7"]
[White "Pelopidass"]
[Black "tigra"]
[Result "0-1"]
[WhiteElo "2572"]
[BlackElo "2781"]
[TimeControl "180+1"]
[EndTime "11:16:50 PST"]
[Termination "tigra won by resignation"]

1. e4 {[%clk 0:03:00.9]} 1... c5 {[%clk 0:03:00]} 2. Nf3 {[%clk 0:03:00.6]} 2...
d6 {[%clk 0:03:00.3]} 3. b3 {[%clk 0:03:01.1]} 3... Nf6 {[%clk 0:02:59.1]} 4. e5
{[%clk 0:03:01]} 4... dxe5 {[%clk 0:02:59.2]} 5. Nxe5 {[%clk 0:03:01.9]} 5... g6
{[%clk 0:02:55.6]} 6. Bb2 {[%clk 0:03:00.5]} 6... Bg7 {[%clk 0:02:55.4]} 7. Bc4
{[%clk 0:02:59.5]} 7... O-O {[%clk 0:02:54.6]} 8. O-O {[%clk 0:02:58.7]} 8... e6
{[%clk 0:02:47.7]} 9. Qe2 {[%clk 0:02:54.8]} 9... Nd5 {[%clk 0:02:46.2]} 10. Nc3
{[%clk 0:02:29.3]} 10... Nf4 {[%clk 0:02:39.8]} 11. Qe4 {[%clk 0:02:00.7]} 11...
Qd4 {[%clk 0:02:33.1]} 12. Rfe1 {[%clk 0:01:40.1]} 12... Nd7 {[%clk 0:02:20.9]}
13. Nf3 {[%clk 0:01:10.1]} 13... Qxe4 {[%clk 0:02:12.1]} 14. Rxe4 {[%clk
0:01:11]} 14... Nd5 {[%clk 0:02:06.4]} 15. Nd1 {[%clk 0:00:52]} 15... b6 {[%clk
0:01:57.4]} 16. Bxg7 {[%clk 0:00:50.1]} 16... Kxg7 {[%clk 0:01:58.3]} 17. Bxd5
{[%clk 0:00:49.6]} 17... exd5 {[%clk 0:01:57.5]} 18. Re1 {[%clk 0:00:48.5]}
18... d4 {[%clk 0:01:56.4]} 19. c3 {[%clk 0:00:42.9]} 19... Bb7 {[%clk
0:01:53.6]} 20. cxd4 {[%clk 0:00:35.4]} 20... Bxf3 {[%clk 0:01:53.1]} 21. gxf3
{[%clk 0:00:35.3]} 21... cxd4 {[%clk 0:01:53.6]} 22. Nb2 {[%clk 0:00:33.3]}
22... Rac8 {[%clk 0:01:47.2]} 23. Rac1 {[%clk 0:00:33.1]} 23... Ne5 {[%clk
0:01:45]} 24. Kg2 {[%clk 0:00:29.4]} 24... Kf6 {[%clk 0:01:41.5]} 25. f4 {[%clk
0:00:25.2]} 25... Nc6 {[%clk 0:01:41.2]} 26. Re4 {[%clk 0:00:23.3]} 26... Rfd8
{[%clk 0:01:39.5]} 27. Nd3 {[%clk 0:00:20.6]} 27... Ne7 {[%clk 0:01:30.8]} 28.
Rxc8 {[%clk 0:00:16.9]} 28... Nxc8 {[%clk 0:01:31.7]} 29. Ne5 {[%clk 0:00:14]}
29... Rd5 {[%clk 0:01:08.1]} 30. Nf3 {[%clk 0:00:10.5]} 30... d3 {[%clk
0:01:04]} 31. Ne5 {[%clk 0:00:08.9]} 31... Nd6 {[%clk 0:00:59.7]} 32. Ra4 {[%clk
0:00:09.2]} 32... a5 {[%clk 0:00:50.3]} 33. Kf3 {[%clk 0:00:09.5]} 33... h5
{[%clk 0:00:48.2]} 34. Nd7+ {[%clk 0:00:09.8]} 34... Kf5 {[%clk 0:00:47.4]} 35.
Nxb6 {[%clk 0:00:10.7]} 35... Rc5 {[%clk 0:00:41.3]} 36. Nd7 {[%clk 0:00:10.8]}
36... Rd5 {[%clk 0:00:36.7]} 37. Nb6 {[%clk 0:00:10.4]} 37... Rb5 {[%clk
0:00:35]} 38. Nc4 {[%clk 0:00:08.7]} 38... Nb7 {[%clk 0:00:34.8]} 39. Ke3 {[%clk
0:00:05.9]} 39... Kg4 {[%clk 0:00:31.9]} 40. f3+ {[%clk 0:00:05.2]} 40... Kh3
{[%clk 0:00:32]} 41. Ne5 {[%clk 0:00:04.9]} 41... Nd6 {[%clk 0:00:27.4]} 42.
Kxd3 {[%clk 0:00:02.8]} 42... Kxh2 {[%clk 0:00:25.5]} 43. Rd4 {[%clk 0:00:01.9]}
43... Nf5 {[%clk 0:00:25.7]} 44. Rd7 {[%clk 0:00:02.4]} 44... f6 {[%clk
0:00:20.6]} 45. Nxg6 {[%clk 0:00:01.7]} 45... h4 {[%clk 0:00:20.7]} 46. Rh7
{[%clk 0:00:02.1]} 46... h3 {[%clk 0:00:20.7]} 47. Ke4 {[%clk 0:00:03]} 47...
Ng3+ {[%clk 0:00:20.4]} 48. Ke3 {[%clk 0:00:02.9]} 48... Rd5 {[%clk 0:00:19.1]}
49. d4 {[%clk 0:00:02.4]} 49... Rd8 {[%clk 0:00:15.6]} 50. f5 {[%clk 0:00:02.3]}
50... Nxf5+ {[%clk 0:00:15]} 51. Kf2 {[%clk 0:00:02.7]} 51... Rxd4 {[%clk
0:00:14.1]} 52. Nf4 {[%clk 0:00:03.2]} 52... Rxf4 {[%clk 0:00:14.2]} 53. b4
{[%clk 0:00:01.9]} 53... axb4 {[%clk 0:00:13.9]} 0-1

[Event "*** Titled Tuesday Blitz"]
[Site "Chess.com"]
[Date "2020.12.01"]
[Round "7"]
[White "politeplayer"]
[Black "tteshan"]
[Result "1/2-1/2"]
[WhiteElo "2255"]
[BlackElo "2368"]
[TimeControl "180+1"]
[EndTime "11:16:50 PST"]
[Termination "Game drawn - insufficient material"]

1. e4 {[%clk 0:03:00.9]} 1... c5 {[%clk 0:02:59.7]} 2. c3 {[%clk 0:02:59.4]}
2... d5 {[%clk 0:02:59.4]} 3. exd5 {[%clk 0:02:58.3]} 3... Qxd5 {[%clk
0:03:00.3]} 4. d4 {[%clk 0:02:58.6]} 4... Nf6 {[%clk 0:02:59.4]} 5. Nf3 {[%clk
0:02:58.3]} 5... e6 {[%clk 0:02:59.8]} 6. Be3 {[%clk 0:02:53]} 6... cxd4 {[%clk
0:02:59.4]} 7. cxd4 {[%clk 0:02:52.4]} 7... Bd7 {[%clk 0:02:59.8]} 8. Nc3 {[%clk
0:02:47.2]} 8... Bb4 {[%clk 0:02:59.4]} 9. Bd3 {[%clk 0:02:27.9]} 9... Bxc3+
{[%clk 0:02:57.2]} 10. bxc3 {[%clk 0:02:26.1]} 10... O-O {[%clk 0:02:48.5]} 11.
O-O {[%clk 0:02:23.4]} 11... Bb5 {[%clk 0:02:47.8]} 12. Rb1 {[%clk 0:02:14.4]}
12... Bxd3 {[%clk 0:02:47]} 13. Qxd3 {[%clk 0:02:14.8]} 13... b6 {[%clk
0:02:41.7]} 14. c4 {[%clk 0:02:06.9]} 14... Qd7 {[%clk 0:02:36.4]} 15. Ne5
{[%clk 0:02:05]} 15... Qe7 {[%clk 0:02:10.2]} 16. Bc1 {[%clk 0:01:57.3]} 16...
Rd8 {[%clk 0:02:04]} 17. Ba3 {[%clk 0:01:56.1]} 17... Qc7 {[%clk 0:02:02.6]} 18.
Qf3 {[%clk 0:01:30.5]} 18... Nbd7 {[%clk 0:01:49.2]} 19. Nc6 {[%clk 0:01:14.6]}
19... Re8 {[%clk 0:01:47]} 20. Rfe1 {[%clk 0:01:02]} 20... Kh8 {[%clk
0:01:32.5]} 21. d5 {[%clk 0:00:59.2]} 21... exd5 {[%clk 0:01:30.6]} 22. cxd5
{[%clk 0:00:56.5]} 22... h6 {[%clk 0:01:11.5]} 23. d6 {[%clk 0:00:55.5]} 23...
Qb7 {[%clk 0:01:08.2]} 24. Rbc1 {[%clk 0:00:34.6]} 24... Rxe1+ {[%clk
0:00:52.9]} 25. Rxe1 {[%clk 0:00:33.4]} 25... Rc8 {[%clk 0:00:50.2]} 26. Ne5
{[%clk 0:00:19.7]} 26... Qxf3 {[%clk 0:00:48.3]} 27. gxf3 {[%clk 0:00:17.2]}
27... Nxe5 {[%clk 0:00:35.5]} 28. Rxe5 {[%clk 0:00:17]} 28... Rc3 {[%clk
0:00:24.4]} 29. Re8+ {[%clk 0:00:14.6]} 29... Kh7 {[%clk 0:00:17]} 30. Bb2
{[%clk 0:00:14.7]} 30... Rd3 {[%clk 0:00:14.1]} 31. Bxf6 {[%clk 0:00:14.4]}
31... gxf6 {[%clk 0:00:14.6]} 32. Rd8 {[%clk 0:00:14.1]} 32... Rxf3 {[%clk
0:00:12.5]} 33. Rd7 {[%clk 0:00:13]} 33... Kg7 {[%clk 0:00:11.9]} 34. Rxa7
{[%clk 0:00:12.7]} 34... Rd3 {[%clk 0:00:12]} 35. d7 {[%clk 0:00:12.9]} 35... f5
{[%clk 0:00:10.9]} 36. Kf1 {[%clk 0:00:13]} 36... Rd2 {[%clk 0:00:09.6]} 37. Ke1
{[%clk 0:00:12.6]} 37... Rd6 {[%clk 0:00:10]} 38. Ke2 {[%clk 0:00:12.6]} 38...
Kf6 {[%clk 0:00:10.4]} 39. Ke3 {[%clk 0:00:12.5]} 39... Ke7 {[%clk 0:00:10.8]}
40. Kf4 {[%clk 0:00:12.3]} 40... Rd5 {[%clk 0:00:10.6]} 41. d8=Q+ {[%clk
0:00:10.4]} 41... Kxd8 {[%clk 0:00:09.8]} 42. Rxf7 {[%clk 0:00:10.7]} 42... Rd2
{[%clk 0:00:09.4]} 43. Kxf5 {[%clk 0:00:09.6]} 43... Rxf2+ {[%clk 0:00:09.3]}
44. Ke6 {[%clk 0:00:09.8]} 44... Rxh2 {[%clk 0:00:09.2]} 45. Rb7 {[%clk
0:00:09.6]} 45... Rxa2 {[%clk 0:00:07.8]} 46. Rxb6 {[%clk 0:00:09.5]} 46... Kc7
{[%clk 0:00:05.6]} 47. Rb5 {[%clk 0:00:07.9]} 47... Rh2 {[%clk 0:00:02.8]} 48.
Kf6 {[%clk 0:00:06.8]} 48... Kd6 {[%clk 0:00:03.1]} 49. Kg6 {[%clk 0:00:06]}
49... Ke6 {[%clk 0:00:03.6]} 50. Rh5 {[%clk 0:00:05.6]} 50... Rxh5 {[%clk
0:00:03.7]} 51. Kxh5 {[%clk 0:00:05.5]} 51... Kf5 {[%clk 0:00:04.5]} 52. Kxh6
{[%clk 0:00:06]} 1/2-1/2

[Event "*** Titled Tuesday Blitz"]
[Site "Chess.com"]
[Date "2020.12.01"]
[Round "7"]
[White "fish7728"]
[Black "kidagent"]
[Result "0-1"]
[WhiteElo "2140"]
[BlackElo "2291"]
[TimeControl "180+1"]
[EndTime "11:16:50 PST"]
[Termination "kidagent won on time"]

1. d4 {[%clk 0:03:00.9]} 1... d5 {[%clk 0:02:59.8]} 2. c4 {[%clk 0:03:01.1]}
2... c6 {[%clk 0:02:59.9]} 3. Nc3 {[%clk 0:03:01.2]} 3... dxc4 {[%clk
0:03:00.4]} 4. e4 {[%clk 0:02:58.4]} 4... b5 {[%clk 0:03:00.5]} 5. Nf3 {[%clk
0:02:58.4]} 5... Nf6 {[%clk 0:02:57.9]} 6. e5 {[%clk 0:02:57.9]} 6... Nd5 {[%clk
0:02:56]} 7. Be2 {[%clk 0:02:58]} 7... b4 {[%clk 0:02:54.9]} 8. Ne4 {[%clk
0:02:57]} 8... Ba6 {[%clk 0:02:54.9]} 9. O-O {[%clk 0:02:56.6]} 9... e6 {[%clk
0:02:54.5]} 10. Qc2 {[%clk 0:02:56.2]} 10... Nd7 {[%clk 0:02:53.3]} 11. Bxc4
{[%clk 0:02:54.5]} 11... Be7 {[%clk 0:02:53.7]} 12. Bxa6 {[%clk 0:02:53.6]}
12... Qb6 {[%clk 0:02:52.1]} 13. Bc4 {[%clk 0:02:52.5]} 13... O-O {[%clk
0:02:51.4]} 14. Bxd5 {[%clk 0:02:51.2]} 14... cxd5 {[%clk 0:02:51.3]} 15. Be3
{[%clk 0:02:43.9]} 15... dxe4 {[%clk 0:02:50]} 16. Qxe4 {[%clk 0:02:42.9]} 16...
Rac8 {[%clk 0:02:47.9]} 17. d5 {[%clk 0:02:42.1]} 17... Qa5 {[%clk 0:02:42]} 18.
d6 {[%clk 0:02:21.5]} 18... Bd8 {[%clk 0:02:42.2]} 19. Rac1 {[%clk 0:02:17.9]}
19... Bb6 {[%clk 0:02:39.1]} 20. Bg5 {[%clk 0:02:09.8]} 20... h6 {[%clk
0:02:28.2]} 21. Bd2 {[%clk 0:02:04.2]} 21... Qxa2 {[%clk 0:02:22.7]} 22. Qxb4
{[%clk 0:02:00.8]} 22... Qd5 {[%clk 0:02:17.6]} 23. Bc3 {[%clk 0:01:50.5]} 23...
Rc4 {[%clk 0:02:14.2]} 24. Qb3 {[%clk 0:01:45.8]} 24... Nc5 {[%clk 0:02:13.9]}
25. Qd1 {[%clk 0:01:43.9]} 25... Qc6 {[%clk 0:02:09.4]} 26. Nd4 {[%clk
0:01:34.6]} 26... Qb7 {[%clk 0:02:09]} 27. Qe2 {[%clk 0:01:32.7]} 27... Ra4
{[%clk 0:02:01.7]} 28. Qb5 {[%clk 0:01:11.8]} 28... a6 {[%clk 0:01:47.9]} 29.
Qe2 {[%clk 0:01:06]} 29... Ra2 {[%clk 0:01:45.8]} 30. Ra1 {[%clk 0:00:53]} 30...
Qd5 {[%clk 0:01:42.9]} 31. Rxa2 {[%clk 0:00:47.5]} 31... Qxa2 {[%clk 0:01:43.8]}
32. Nc6 {[%clk 0:00:46.6]} 32... Na4 {[%clk 0:01:41.2]} 33. Qxa6 {[%clk
0:00:38.1]} 33... Nxc3 {[%clk 0:01:14.8]} 34. Qxb6 {[%clk 0:00:37.7]} 34... Ne2+
{[%clk 0:01:15]} 35. Kh1 {[%clk 0:00:37.1]} 35... Qc4 {[%clk 0:01:15.9]} 36. Re1
{[%clk 0:00:23.9]} 36... Nf4 {[%clk 0:01:09.9]} 37. Ne7+ {[%clk 0:00:20.3]}
37... Kh7 {[%clk 0:01:08.6]} 38. Qe3 {[%clk 0:00:19.8]} 38... g6 {[%clk
0:00:58.4]} 39. Qe4 {[%clk 0:00:12.8]} 39... Qxe4 {[%clk 0:00:53.7]} 40. Rxe4
{[%clk 0:00:12.8]} 40... Nd3 {[%clk 0:00:54.6]} 41. Re2 {[%clk 0:00:10.4]} 41...
Ra8 {[%clk 0:00:47.5]} 42. g3 {[%clk 0:00:10.3]} 42... Kg7 {[%clk 0:00:46.4]}
43. Kg2 {[%clk 0:00:10.1]} 43... Kf8 {[%clk 0:00:45.9]} 44. Rd2 {[%clk
0:00:10.5]} 44... Nc5 {[%clk 0:00:45.3]} 45. b4 {[%clk 0:00:09.4]} 45... Nd7
{[%clk 0:00:36.2]} 46. f4 {[%clk 0:00:08]} 46... Rb8 {[%clk 0:00:31.5]} 47. Rb2
{[%clk 0:00:07.5]} 47... Rb5 {[%clk 0:00:30.2]} 48. Kf3 {[%clk 0:00:06]} 48...
Ke8 {[%clk 0:00:29.8]} 49. Ke4 {[%clk 0:00:06.3]} 49... g5 {[%clk 0:00:27.2]}
50. Kd4 {[%clk 0:00:06.2]} 50... gxf4 {[%clk 0:00:26.4]} 51. gxf4 {[%clk
0:00:07.1]} 51... Nb6 {[%clk 0:00:24.5]} 52. Nc6 {[%clk 0:00:06.5]} 52... Kd7
{[%clk 0:00:23.5]} 53. Ne7 {[%clk 0:00:05.4]} 53... f6 {[%clk 0:00:18.7]} 54.
exf6 {[%clk 0:00:03.8]} 54... Kxd6 {[%clk 0:00:18.6]} 55. Ng6 {[%clk 0:00:01.9]}
55... Nd7 {[%clk 0:00:18.2]} 56. Ne5 {[%clk 0:00:01.3]} 56... Nxf6 {[%clk
0:00:17.4]} 0-1

[Event "*** Titled Tuesday Blitz"]
[Site "Chess.com"]
[Date "2020.12.01"]
[Round "7"]
[White "Nikolaj_6"]
[Black "Srisshhhtea"]
[Result "1-0"]
[WhiteElo "2630"]
[BlackElo "2278"]
[TimeControl "180+1"]
[EndTime "11:16:52 PST"]
[Termination "Nikolaj_6 won by checkmate"]

1. e4 {[%clk 0:03:00.9]} 1... e6 {[%clk 0:03:00.9]} 2. d4 {[%clk 0:03:00.5]}
2... d5 {[%clk 0:02:58.2]} 3. Nc3 {[%clk 0:03:00.4]} 3... Bb4 {[%clk 0:02:56.4]}
4. e5 {[%clk 0:03:00.4]} 4... c5 {[%clk 0:02:56.1]} 5. a3 {[%clk 0:03:00.7]}
5... Bxc3+ {[%clk 0:02:56.1]} 6. bxc3 {[%clk 0:03:01.6]} 6... Ne7 {[%clk
0:02:56.6]} 7. a4 {[%clk 0:03:01.6]} 7... Qa5 {[%clk 0:02:54.6]} 8. Qd2 {[%clk
0:02:58.5]} 8... cxd4 {[%clk 0:02:51.9]} 9. cxd4 {[%clk 0:02:58.2]} 9... Qxd2+
{[%clk 0:02:47.5]} 10. Bxd2 {[%clk 0:02:58.4]} 10... Nbc6 {[%clk 0:02:47.4]} 11.
Nf3 {[%clk 0:02:58.3]} 11... Bd7 {[%clk 0:02:46.3]} 12. Bc3 {[%clk 0:02:54.9]}
12... Nf5 {[%clk 0:02:45.1]} 13. Bd3 {[%clk 0:02:53.6]} 13... Rc8 {[%clk
0:02:44.7]} 14. Kd2 {[%clk 0:02:53]} 14... O-O {[%clk 0:02:39.5]} 15. a5 {[%clk
0:02:52.7]} 15... Rc7 {[%clk 0:02:35.2]} 16. Rhb1 {[%clk 0:02:45.9]} 16... Rfc8
{[%clk 0:02:33.1]} 17. Rb3 {[%clk 0:02:45.1]} 17... h6 {[%clk 0:02:29.1]} 18. g4
{[%clk 0:02:43.9]} 18... Nfe7 {[%clk 0:02:28.2]} 19. Ne1 {[%clk 0:02:40.1]}
19... f6 {[%clk 0:02:19.9]} 20. f4 {[%clk 0:02:23.5]} 20... fxe5 {[%clk
0:02:19.1]} 21. fxe5 {[%clk 0:02:23.4]} 21... Be8 {[%clk 0:02:19]} 22. Rab1
{[%clk 0:02:15.8]} 22... Nd8 {[%clk 0:02:15.2]} 23. Bb4 {[%clk 0:02:09.3]} 23...
Nec6 {[%clk 0:02:09.4]} 24. c3 {[%clk 0:01:50.7]} 24... Nxb4 {[%clk 0:02:02.9]}
25. cxb4 {[%clk 0:01:50.8]} 25... Nc6 {[%clk 0:01:57.9]} 26. Nc2 {[%clk
0:01:34.2]} 26... a6 {[%clk 0:01:50.5]} 27. Rf1 {[%clk 0:01:29.9]} 27... Na7
{[%clk 0:01:47]} 28. Rb2 {[%clk 0:01:24.2]} 28... Bb5 {[%clk 0:01:44.2]} 29. Rf3
{[%clk 0:01:18.1]} 29... Bxd3 {[%clk 0:01:41.5]} 30. Rxd3 {[%clk 0:01:18.7]}
30... Nb5 {[%clk 0:01:41.1]} 31. Ne1 {[%clk 0:01:07.9]} 31... Rc4 {[%clk
0:01:27.4]} 32. Nf3 {[%clk 0:01:02.1]} 32... Kf7 {[%clk 0:01:26.7]} 33. h4
{[%clk 0:00:59.5]} 33... Ke7 {[%clk 0:01:26.6]} 34. h5 {[%clk 0:00:59.8]} 34...
Rf8 {[%clk 0:01:23]} 35. Ke3 {[%clk 0:00:54.1]} 35... Kd7 {[%clk 0:01:16.3]} 36.
Nd2 {[%clk 0:00:51.8]} 36... Rc1 {[%clk 0:01:12]} 37. Nb3 {[%clk 0:00:51.5]}
37... Rg1 {[%clk 0:01:04.5]} 38. Nc5+ {[%clk 0:00:48.7]} 38... Ke7 {[%clk
0:01:03.4]} 39. Rf2 {[%clk 0:00:45.1]} 39... Rg3+ {[%clk 0:01:01.5]} 40. Ke2
{[%clk 0:00:44.6]} 40... Rxf2+ {[%clk 0:01:00]} 41. Kxf2 {[%clk 0:00:44.7]}
41... Rxd3 {[%clk 0:00:45.1]} 42. Nxd3 {[%clk 0:00:45.6]} 42... Nxd4 {[%clk
0:00:44.9]} 43. Ke3 {[%clk 0:00:42.7]} 43... Nc6 {[%clk 0:00:43.2]} 44. Kf4
{[%clk 0:00:41]} 44... Nd8 {[%clk 0:00:36.2]} 45. Nc5 {[%clk 0:00:40]} 45... Kf8
{[%clk 0:00:28.4]} 46. b5 {[%clk 0:00:35.4]} 46... axb5 {[%clk 0:00:27.3]} 47.
Nxb7 {[%clk 0:00:35.6]} 47... Nc6 {[%clk 0:00:27.3]} 48. a6 {[%clk 0:00:35.8]}
48... Na7 {[%clk 0:00:27]} 49. Ke3 {[%clk 0:00:30.2]} 49... Ke7 {[%clk 0:00:23]}
50. Kd4 {[%clk 0:00:29.9]} 50... Kd7 {[%clk 0:00:22.2]} 51. Kc5 {[%clk 0:00:29]}
51... Kc7 {[%clk 0:00:20.4]} 52. Nd6 {[%clk 0:00:25.2]} 52... Kb8 {[%clk
0:00:19.7]} 53. Ne8 {[%clk 0:00:23.5]} 53... b4 {[%clk 0:00:17.6]} 54. Kxb4
{[%clk 0:00:23.3]} 54... Nc6+ {[%clk 0:00:16.4]} 55. Kc5 {[%clk 0:00:23.4]}
55... Nxe5 {[%clk 0:00:17.3]} 56. Nxg7 {[%clk 0:00:21.5]} 56... Nxg4 {[%clk
0:00:15.8]} 57. Kb6 {[%clk 0:00:19.8]} 57... d4 {[%clk 0:00:15]} 58. a7+ {[%clk
0:00:18.9]} 58... Ka8 {[%clk 0:00:15.4]} 59. Nxe6 {[%clk 0:00:19.4]} 59... d3
{[%clk 0:00:13.1]} 60. Nc7# {[%clk 0:00:19.4]} 1-0

[Event "*** Titled Tuesday Blitz"]
[Site "Chess.com"]
[Date "2020.12.01"]
[Round "7"]
[White "Zq1"]
[Black "Alomaterapia"]
[Result "1/2-1/2"]
[WhiteElo "2568"]
[BlackElo "2444"]
[TimeControl "180+1"]
[EndTime "11:16:52 PST"]
[Termination "Game drawn by repetition"]

1. d4 {[%clk 0:03:00.9]} 1... d5 {[%clk 0:02:59.9]} 2. c4 {[%clk 0:02:59.2]}
2... c6 {[%clk 0:03:00.3]} 3. cxd5 {[%clk 0:02:57.3]} 3... cxd5 {[%clk
0:03:01.2]} 4. Bg5 {[%clk 0:02:56.2]} 4... h6 {[%clk 0:02:56.2]} 5. Bh4 {[%clk
0:02:53.9]} 5... Qb6 {[%clk 0:02:56.5]} 6. Qd2 {[%clk 0:02:39.6]} 6... Nc6
{[%clk 0:02:46.6]} 7. e3 {[%clk 0:02:38.7]} 7... e6 {[%clk 0:02:46.7]} 8. Nc3
{[%clk 0:02:36.5]} 8... Nge7 {[%clk 0:02:45.5]} 9. Bd3 {[%clk 0:02:34.2]} 9...
Ng6 {[%clk 0:02:36.6]} 10. Bxg6 {[%clk 0:02:31.6]} 10... fxg6 {[%clk 0:02:36.8]}
11. Nf3 {[%clk 0:02:27.5]} 11... Bd6 {[%clk 0:02:30.5]} 12. Bg3 {[%clk
0:02:26.6]} 12... Be7 {[%clk 0:02:21.3]} 13. h4 {[%clk 0:02:23.6]} 13... O-O
{[%clk 0:02:18.8]} 14. O-O {[%clk 0:02:20]} 14... Bd7 {[%clk 0:02:15.5]} 15. a3
{[%clk 0:02:03.9]} 15... Na5 {[%clk 0:02:06]} 16. Qc2 {[%clk 0:01:57.8]} 16...
Nc4 {[%clk 0:01:54.5]} 17. Ne5 {[%clk 0:01:37.2]} 17... Nxe5 {[%clk 0:01:49.7]}
18. Bxe5 {[%clk 0:01:36.3]} 18... Be8 {[%clk 0:01:45.4]} 19. g3 {[%clk
0:01:24.6]} 19... g5 {[%clk 0:01:41.4]} 20. hxg5 {[%clk 0:01:22.3]} 20... Bxg5
{[%clk 0:01:41.6]} 21. Na4 {[%clk 0:01:20.9]} 21... Qd8 {[%clk 0:01:35.3]} 22.
Nc5 {[%clk 0:01:15.8]} 22... Qe7 {[%clk 0:01:34.6]} 23. Kg2 {[%clk 0:01:08.5]}
23... Rc8 {[%clk 0:01:31]} 24. Qe2 {[%clk 0:01:07.1]} 24... b6 {[%clk
0:01:28.4]} 25. Nd3 {[%clk 0:01:05.6]} 25... Bb5 {[%clk 0:01:28.5]} 26. Rad1
{[%clk 0:00:59.6]} 26... Rc6 {[%clk 0:01:21.6]} 27. Qg4 {[%clk 0:00:53.7]} 27...
Rfc8 {[%clk 0:01:17.3]} 28. Rd2 {[%clk 0:00:46.6]} 28... Rc2 {[%clk 0:01:14.8]}
29. Rxc2 {[%clk 0:00:40]} 29... Rxc2 {[%clk 0:01:14.1]} 30. Qd1 {[%clk
0:00:38.8]} 30... Rc8 {[%clk 0:01:04.5]} 31. Rh1 {[%clk 0:00:33.3]} 31... Qf7
{[%clk 0:01:02.3]} 32. Bf4 {[%clk 0:00:29.9]} 32... Bf6 {[%clk 0:00:57.4]} 33.
Ne5 {[%clk 0:00:28.8]} 33... Bxe5 {[%clk 0:00:57.6]} 34. Bxe5 {[%clk 0:00:28.3]}
34... Qf5 {[%clk 0:00:54.1]} 35. Qf3 {[%clk 0:00:25.3]} 35... Qxf3+ {[%clk
0:00:52.5]} 36. Kxf3 {[%clk 0:00:25.1]} 36... Rc2 {[%clk 0:00:52.3]} 37. b3
{[%clk 0:00:20.4]} 37... Bd3 {[%clk 0:00:50.5]} 38. Re1 {[%clk 0:00:16.4]} 38...
Be4+ {[%clk 0:00:47]} 39. Kg4 {[%clk 0:00:16]} 39... Rxf2 {[%clk 0:00:44.9]} 40.
Kh3 {[%clk 0:00:15]} 40... h5 {[%clk 0:00:32.4]} 41. g4 {[%clk 0:00:14.6]} 41...
Rf3+ {[%clk 0:00:28.8]} 42. Kh4 {[%clk 0:00:14.2]} 42... hxg4 {[%clk 0:00:27]}
43. Kxg4 {[%clk 0:00:14.2]} 43... Kf7 {[%clk 0:00:27.3]} 44. Rc1 {[%clk
0:00:12.3]} 44... Rxe3 {[%clk 0:00:20.3]} 45. Rc7+ {[%clk 0:00:11.5]} 45... Ke8
{[%clk 0:00:20.4]} 46. Rxg7 {[%clk 0:00:10.9]} 46... a5 {[%clk 0:00:20.3]} 47.
b4 {[%clk 0:00:09.7]} 47... Bf5+ {[%clk 0:00:20.5]} 48. Kg5 {[%clk 0:00:08.7]}
48... Rg3+ {[%clk 0:00:20.6]} 49. Kf6 {[%clk 0:00:08.8]} 49... Rxg7 {[%clk
0:00:21.4]} 50. Kxg7 {[%clk 0:00:09]} 50... Kd7 {[%clk 0:00:21.8]} 51. bxa5
{[%clk 0:00:09]} 51... bxa5 {[%clk 0:00:22.7]} 52. Kf6 {[%clk 0:00:09]} 52...
Kc6 {[%clk 0:00:23.3]} 53. Kf7 {[%clk 0:00:08.8]} 53... Kb6 {[%clk 0:00:23.7]}
54. Ke7 {[%clk 0:00:08.2]} 54... Kb5 {[%clk 0:00:24]} 55. Bd6 {[%clk 0:00:07]}
55... Kc4 {[%clk 0:00:24.1]} 56. Be5 {[%clk 0:00:05.4]} 56... Bg4 {[%clk
0:00:21.7]} 57. Kf6 {[%clk 0:00:04.9]} 57... Kb3 {[%clk 0:00:21.6]} 58. Bd6
{[%clk 0:00:04.5]} 58... Kc3 {[%clk 0:00:22]} 59. Ke5 {[%clk 0:00:04.7]} 59...
Bf5 {[%clk 0:00:22.1]} 60. Be7 {[%clk 0:00:05.1]} 60... a4 {[%clk 0:00:22.2]}
61. Bd6 {[%clk 0:00:05.7]} 61... Kc4 {[%clk 0:00:22.3]} 62. Be7 {[%clk
0:00:06.4]} 62... Kb3 {[%clk 0:00:22.8]} 63. Bd6 {[%clk 0:00:06.9]} 63... Kc4
{[%clk 0:00:23.6]} 64. Be7 {[%clk 0:00:07.4]} 64... Kb3 {[%clk 0:00:24.5]} 65.
Bd6 {[%clk 0:00:07.8]} 65... Kc4 {[%clk 0:00:25.1]} 1/2-1/2